bitfinex-derivatives/quotes_BNBF0:USTF0_20251027
["timestamp","ask_amount","ask_price","bid_price","bid_amount"]
[1761557845272,2.1487932,1159.4,1156.5,0.55072888]
[1761557845470,2.1487932,1159.4,1156.6,0.55072888]
[1761557845770,2.1487932,1159.2,1156.7,0.55072888]
[1761557845971,2.1487932,1159.2,1156.2,0.63988317]
[1761557846171,2.1487932,1159.2,1156.3,0.55080219]
[1761557846377,2.1487932,1159.2,1156.4,0.55080219]
[1761557846576,2.1487932,1159.2,1155.9,0.63988317]
[1761557846772,2.1487932,1159.6,1156.0,0.55126023]
[1761557846972,2.1487932,1159.6,1156.1,0.55126023]
[1761557847174,2.1487932,1158.8,1156.2,0.55126023]
[1761557847373,2.1487932,1158.8,1156.3,0.55126023]
[1761557847575,2.1487932,1158.8,1155.9,0.63988317]
[1761557847774,2.1487932,1158.3,1155.9,0.63988317]
[1761557847975,2.1487932,1158.3,1156.0,0.55135282]
[1761557848273,2.1487932,1158.3,1155.7,0.63988317]
[1761557848274,2.1487932,1158.2,1156.1,0.55135282]
[1761557848472,2.1487932,1158.2,1155.7,0.63988317]
[1761557848674,2.1487932,1158.2,1155.8,0.5514527]
[1761557848873,2.1487932,1158.4,1155.9,0.5514527]
[1761557849173,2.1487932,1158.4,1156.0,0.5514527]
[1761557849472,2.1487932,1158.4,1155.6,0.63988317]
[1761557849672,2.1487932,1158.4,1155.7,0.5513727]
[1761557849974,2.1487932,1158.4,1155.8,0.5513727]
[1761557850176,2.1487932,1158.4,1155.9,0.5513727]
[1761557850473,2.29898839,1160.2,1156.0,0.5513727]
[1761557850677,2.29898839,1160.2,1156.1,0.5513727]
[1761557850874,2.29898839,1160.2,1156.2,0.5513727]
[1761557851074,2.29898839,1160.2,1155.4,0.79036803]
[1761557851275,2.29898839,1160.2,1155.5,0.55110577]
[1761557851476,2.29898839,1160.2,1155.6,0.55110577]
[1761557851678,2.29898839,1160.2,1155.7,0.55110577]
[1761557851976,2.29898839,1160.2,1155.8,0.55110577]
[1761557852174,2.29898839,1160.2,1155.9,0.55110577]
[1761557852378,0.15019519,1160.2,1156.0,0.55110577]
[1761557852678,0.15019519,1160.2,1156.1,0.55110577]
[1761557852980,0.15019519,1160.2,1156.2,0.55110577]
[1761557853276,0.15019519,1160.2,1155.4,0.79036803]
[1761557853479,0.15019519,1160.2,1155.6,0.63988317]
[1761557853678,0.15019519,1160.2,1155.7,0.54915185]
[1761557853978,0.15019519,1160.2,1155.8,0.54915185]
[1761557854179,0.15019519,1160.2,1155.9,0.54915185]
[1761557854478,2.1487932,1158.9,1156.0,0.54915185]
[1761557854674,2.1487932,1158.9,1156.1,0.54915185]
[1761557854872,2.1487932,1158.9,1155.7,0.63988317]
[1761557855073,2.1487932,1158.8,1155.8,0.54938661]
[1761557855273,2.1487932,1158.8,1155.9,0.54938661]
[1761557855476,2.1487932,1158.7,1156.0,0.54938661]
[1761557855674,2.1487932,1158.7,1156.1,0.54938661]
[1761557855976,2.1487932,1158.7,1155.7,0.63988317]
[1761557856180,2.1487932,1158.7,1155.8,0.54922943]
[1761557856377,2.1487932,1158.7,1155.9,0.54922943]
[1761557856576,2.1487932,1158.5,1156.0,0.54922943]
[1761557856881,2.1487932,1158.5,1155.6,0.63988317]
[1761557857078,2.1487932,1158.5,1155.7,0.54909564]
[1761557857281,2.1487932,1158.5,1155.8,0.54909564]
[1761557857481,2.1487932,1158.5,1155.9,0.54909564]
[1761557857681,2.1487932,1158.4,1156.0,0.54909564]
[1761557857880,2.1487932,1158.4,1155.6,0.63988317]
[1761557858182,2.1487932,1158.4,1155.7,0.54888554]
[1761557858379,2.1487932,1158.4,1155.8,0.54888554]
[1761557858577,2.1487932,1158.4,1155.9,0.54888554]
[1761557858779,2.1487932,1158.5,1156.0,0.54888554]
[1761557858978,2.1487932,1158.5,1155.6,0.63988317]
[1761557859181,2.1487932,1158.5,1155.7,0.54857544]
[1761557859478,2.1487932,1158.5,1155.8,0.54857544]
[1761557859678,2.1487932,1158.5,1155.9,0.54857544]
[1761557859978,2.1487932,1158.5,1156.0,0.54857544]
[1761557860183,2.1487932,1158.5,1155.6,0.63988317]
[1761557860481,2.1487932,1158.5,1155.7,0.54822476]
[1761557860681,2.1487932,1158.5,1155.8,0.54822476]
[1761557860884,2.1487932,1158.5,1155.9,0.54822476]
[1761557861183,2.1487932,1158.8,1156.0,0.54822476]
[1761557861380,2.1487932,1158.8,1155.6,0.63988317]
[1761557861584,2.1487932,1158.8,1155.7,0.54799847]
[1761557861881,2.1487932,1158.9,1155.8,0.54799847]
[1761557862085,2.1487932,1158.9,1155.9,0.54799847]
[1761557862283,2.1487932,1158.9,1156.0,0.54799847]
[1761557862483,2.1487932,1158.9,1156.1,0.54799847]
[1761557862682,2.1487932,1158.9,1155.7,0.63988317]
[1761557862986,2.1487932,1159.3,1155.8,0.54781682]
[1761557863182,2.1487932,1159.3,1155.9,0.54781682]
[1761557863386,2.1487932,1159.3,1156.0,0.54781682]
[1761557863584,2.1487932,1159.3,1156.1,0.54781682]
[1761557863787,2.1487932,1159.4,1156.2,0.54781682]
[1761557863983,2.1487932,1159.4,1155.7,0.63988317]
[1761557864287,2.1487932,1159.4,1155.8,0.54765726]
[1761557864484,2.1487932,1159.4,1155.9,0.54765726]
[1761557864687,2.1487932,1159.4,1156.0,0.54765726]
[1761557864888,2.1487932,1159.4,1156.1,0.54765726]
[1761557865088,2.1487932,1159.4,1156.2,0.54765726]
[1761557865385,2.1487932,1159.4,1155.7,0.63988317]
[1761557865587,2.1487932,1159.4,1155.8,1.18732875]
[1761557865783,2.1487932,1159.4,1155.9,0.54744558]
[1761557865987,2.1487932,1159.4,1156.0,0.54744558]
[1761557866188,2.1487932,1159.3,1156.1,0.54744558]
[1761557866386,2.1487932,1159.3,1156.2,0.54744558]
[1761557866585,2.1487932,1159.3,1156.3,0.54744558]
[1761557866790,3.0083104,1159.7,1155.9,0.63988317]
[1761557866791,2.1487932,1159.0,1155.9,0.63988317]
[1761557866987,2.1487932,1159.0,1156.0,0.5472744]
[1761557867192,2.1487932,1159.0,1156.1,0.5472744]
[1761557867392,2.1487932,1159.0,1156.2,0.5472744]
[1761557867588,2.1487932,1159.0,1155.9,0.63988317]
[1761557867791,2.1487932,1158.9,1156.0,0.54723731]
[1761557867992,2.1487932,1158.9,1156.1,0.54723731]
[1761557868293,2.1487932,1159.0,1156.2,0.54723731]
[1761557868589,2.1487932,1159.0,1155.9,0.63988317]
[1761557868790,2.1487932,1159.0,1156.0,0.54720645]
[1761557868990,2.1487932,1159.0,1156.1,0.54720645]
[1761557869291,2.1487932,1159.0,1156.2,0.54720645]
[1761557869489,2.1487932,1159.0,1156.3,0.54720645]
[1761557869690,2.1487932,1159.0,1155.7,0.63988317]
[1761557869888,6.4463796,1159.9,1155.8,0.54719387]
[1761557870187,6.4463796,1159.9,1155.9,0.54719387]
[1761557870390,6.4463796,1159.9,1156.0,0.54719387]
[1761557870590,6.4463796,1159.9,1156.1,0.54719387]
[1761557870794,2.1487932,1160.0,1156.2,0.54719387]
[1761557870993,2.1487932,1160.0,1156.3,0.54719387]
[1761557871193,2.1487932,1160.0,1156.4,0.54719387]
[1761557871490,2.1487932,1160.0,1155.8,0.63988317]
[1761557871693,2.1487932,1160.0,1155.9,0.54709611]
[1761557871893,2.1487932,1160.0,1156.0,0.54709611]
[1761557872094,2.1487932,1160.0,1156.1,0.54709611]
[1761557872394,0.15019519,1160.2,1156.2,0.54709611]
[1761557872593,0.15019519,1160.2,1156.3,0.54709611]
[1761557872790,3.0083104,1160.0,1155.8,0.79019383]
[1761557872994,2.1487932,1159.0,1155.9,0.54708237]
[1761557873195,2.1487932,1159.0,1156.0,0.54708237]
[1761557873493,2.1487932,1158.5,1155.8,0.15031066]
[1761557874493,2.1487932,1158.6,1155.8,0.15031066]
[1761557876496,2.1487932,1158.5,1155.8,0.15031066]
[1761557877094,2.1487932,1158.4,1155.8,0.15031066]
[1761557879093,2.1487932,1158.3,1155.8,0.15031066]
[1761557879597,2.1487932,1158.4,1155.8,0.15031066]
[1761557880297,2.1487932,1158.5,1155.8,0.15031066]
[1761557880494,2.1487932,1158.5,1155.9,0.54751152]
[1761557880793,2.1487932,1158.5,1155.8,0.15031066]
[1761557880994,2.1487932,1158.6,1155.9,0.54747067]
[1761557881197,2.1487932,1158.6,1156.0,0.54746252]
[1761557881397,2.1487932,1158.7,1155.8,0.15031066]
[1761557881593,2.1487932,1158.7,1155.9,0.54760792]
[1761557881797,2.1487932,1158.7,1156.0,0.54760792]
[1761557882097,2.1487932,1158.7,1155.8,0.15031066]
[1761557882297,2.1487932,1158.7,1155.9,0.54778892]
[1761557882494,2.1487932,1158.6,1156.0,0.54778892]
[1761557882693,2.1487932,1158.6,1155.8,0.15031066]
[1761557882896,2.1487932,1158.6,1155.9,0.54736576]
[1761557883097,2.1487932,1158.6,1156.0,0.54736576]
[1761557883397,2.1487932,1158.6,1156.1,0.54741749]
[1761557883597,2.1487932,1158.8,1156.2,0.54741749]
[1761557883894,2.1487932,1158.8,1155.8,0.79019383]
[1761557884193,2.1487932,1158.8,1155.9,0.54746776]
[1761557884393,2.1487932,1158.8,1156.0,0.54746776]
[1761557884597,2.1487932,1158.8,1156.1,0.54746776]
[1761557884794,2.1487932,1158.8,1156.2,0.54746776]
[1761557884994,2.1487932,1158.8,1155.9,0.63988317]
[1761557885199,2.1487932,1158.8,1156.0,0.54745395]
[1761557885493,2.1487932,1158.8,1156.1,0.54745395]
[1761557885797,2.1487932,1158.8,1156.2,0.54745395]
[1761557885998,2.1487932,1158.8,1155.9,0.63988317]
[1761557886293,2.1487932,1158.8,1156.0,0.5474769]
[1761557886497,2.1487932,1158.8,1156.1,0.5474769]
[1761557886693,2.1487932,1158.8,1156.2,0.5474769]
[1761557886894,2.1487932,1158.8,1155.8,0.79019383]
[1761557887095,2.1487932,1158.8,1155.9,0.54753822]
[1761557887296,2.1487932,1159.0,1156.0,0.54753822]
[1761557887497,2.1487932,1159.0,1156.1,0.54753822]
[1761557887697,2.1487932,1159.2,1156.2,0.54753822]
[1761557887997,2.1487932,1159.2,1155.8,0.79019383]
[1761557888199,2.1487932,1159.2,1155.9,0.54756756]
[1761557888392,2.1487932,1159.2,1155.8,0.79019383]
[1761557888393,2.1487932,1159.2,1156.0,0.54756756]
[1761557888596,2.1487932,1159.2,1156.1,0.54756756]
[1761557888798,2.1487932,1159.2,1156.2,0.54756756]
[1761557888998,2.1487932,1159.2,1155.8,0.79019383]
[1761557889199,2.1487932,1159.2,1155.9,0.54758103]
[1761557889397,2.1487932,1159.2,1156.0,0.54758103]
[1761557889694,2.1487932,1159.2,1156.1,0.54758103]
[1761557889895,2.1487932,1159.2,1156.2,0.54758103]
[1761557890097,2.1487932,1159.2,1155.8,0.79019383]
[1761557890296,2.1487932,1159.2,1155.9,0.54775624]
[1761557890496,2.1487932,1159.2,1156.0,0.54775624]
[1761557890696,2.1487932,1159.2,1156.1,0.54775624]
[1761557890898,2.1487932,1159.2,1156.2,0.54775624]
[1761557891196,2.1487932,1159.2,1155.8,0.79019383]
[1761557891396,2.1487932,1159.2,1155.9,0.54784709]
[1761557891596,2.1487932,1159.2,1156.0,0.54784709]
[1761557891795,2.1487932,1159.2,1155.8,0.79019383]
[1761557891796,2.1487932,1159.2,1156.1,0.54784709]
[1761557891998,2.1487932,1159.2,1156.2,0.54784709]
[1761557892195,2.1487932,1159.2,1156.3,0.54784709]
[1761557892496,2.1487932,1159.3,1156.4,0.54780627]
[1761557892796,2.1487932,1159.3,1156.0,0.63988317]
[1761557892995,2.1487932,1159.3,1156.1,0.54776974]
[1761557893295,2.1487932,1159.3,1156.2,0.54776974]
[1761557893499,2.1487932,1159.1,1155.8,0.15031066]
[1761557893699,2.1487932,1159.1,1155.9,0.54796361]
[1761557893896,2.1487932,1159.1,1156.0,0.54796361]
[1761557894199,2.1487932,1159.1,1156.1,0.54796361]
[1761557894397,2.1487932,1159.1,1156.2,0.54796361]
[1761557894600,2.1487932,1159.1,1155.8,0.15031066]
[1761557894800,2.1487932,1159.1,1155.9,0.54815123]
[1761557895002,2.1487932,1159.1,1156.0,0.54815123]
[1761557895199,2.1487932,1159.0,1156.1,0.54815123]
[1761557895395,2.1487932,1159.0,1155.8,0.15031066]
[1761557895396,2.1487932,1159.0,1156.2,0.54815123]
[1761557895699,2.1487932,1159.0,1155.8,0.15031066]
[1761557895902,2.1487932,1159.0,1155.9,0.5483377]
[1761557896101,2.1487932,1159.0,1156.0,0.5483377]
[1761557896400,2.1487932,1159.0,1156.1,0.5483377]
[1761557896602,2.1487932,1158.7,1156.2,0.5483377]
[1761557896802,2.1487932,1158.7,1155.8,0.79019383]
[1761557897001,2.1487932,1158.7,1155.9,0.54860566]
[1761557897203,2.1487932,1158.7,1156.0,0.54860566]
[1761557897401,2.1487932,1158.7,1156.1,0.54860566]
[1761557897599,2.1487932,1158.6,1156.2,0.54860566]
[1761557897799,2.1487932,1158.6,1155.8,0.79019383]
[1761557898003,2.1487932,1158.6,1155.9,0.548823]
[1761557898300,2.1487932,1158.6,1156.0,0.548823]
[1761557898502,2.1487932,1158.6,1156.1,0.548823]
[1761557898702,2.1487932,1158.7,1156.2,0.548823]
[1761557898903,2.1487932,1158.7,1156.3,0.548823]
[1761557899101,2.1487932,1158.7,1155.8,0.15031066]
[1761557899403,2.1487932,1158.3,1155.8,1.33942263]
[1761557899603,2.1487932,1158.3,1155.9,0.5492288]
[1761557900205,2.1487932,1158.2,1155.9,0.5492288]
[1761557902309,2.1487932,1158.2,1156.0,0.5492288]
[1761557902605,2.1487932,1158.2,1156.1,0.5492288]
[1761557902905,2.1487932,1158.2,1155.8,0.79019383]
[1761557903112,2.1487932,1158.2,1155.9,0.55026467]
[1761557903309,2.1487932,1158.2,1156.0,0.55026467]
[1761557903510,2.1487932,1158.4,1156.1,0.55026467]
[1761557903809,2.1487932,1158.4,1156.2,0.55026467]
[1761557904005,2.1487932,1158.4,1156.3,0.55026467]
[1761557904210,2.1487932,1158.4,1156.4,0.55026467]
[1761557904506,2.1487932,1158.4,1156.5,0.55026467]
[1761557904806,2.1487932,1158.4,1156.1,0.63988317]
[1761557905111,2.1487932,1158.3,1156.2,0.55064946]
[1761557905311,2.1487932,1158.3,1156.3,0.55064946]
[1761557905511,2.1487932,1158.3,1156.4,0.55064946]
[1761557905712,2.1487932,1158.3,1156.5,0.55064946]
[1761557905908,2.1487932,1158.3,1156.1,0.63988317]
[1761557906107,2.1487932,1158.3,1156.2,0.55081834]
[1761557906311,2.1487932,1158.3,1156.3,0.55081834]
[1761557906607,2.1487932,1158.3,1156.4,0.55081834]
[1761557906910,2.1487932,1158.3,1156.5,0.55081834]
[1761557907108,2.1487932,1158.3,1156.2,0.63988317]
[1761557907307,2.1487932,1158.3,1156.3,0.55123333]
[1761557907506,2.1487932,1158.3,1156.4,0.55123333]
[1761557907706,2.1487932,1158.3,1156.1,0.63988317]
[1761557907912,2.1487932,1158.3,1156.2,0.55148845]
[1761557908109,2.1487932,1158.0,1155.9,0.63988317]
[1761557908314,2.1487932,1158.0,1156.0,0.55117278]
[1761557908513,2.1487932,1158.0,1156.1,0.55117278]
[1761557908711,2.1487932,1158.0,1156.2,0.55117278]
[1761557909011,2.1487932,1158.0,1155.9,0.63988317]
[1761557909210,2.1487932,1158.0,1156.0,0.55114768]
[1761557909410,2.1487932,1158.0,1156.1,0.55114768]
[1761557909614,2.1487932,1158.0,1156.2,0.55114768]
[1761557909810,2.1487932,1158.0,1155.9,0.63988317]
[1761557910014,2.1487932,1158.0,1156.0,0.55108939]
[1761557910214,2.1487932,1158.0,1156.1,0.55108939]
[1761557910416,2.1487932,1158.0,1156.2,0.55108939]
[1761557910611,2.1487932,1158.0,1155.9,0.63988317]
[1761557910811,2.1487932,1158.0,1156.0,0.55099516]
[1761557911013,2.1487932,1158.0,1156.1,0.55099516]
[1761557911211,2.1487932,1158.0,1156.2,0.55099516]
[1761557911512,2.1487932,1158.0,1155.9,0.63988317]
[1761557911714,2.1487932,1158.0,1156.0,0.55091023]
[1761557911916,2.1487932,1158.0,1156.1,0.55091023]
[1761557912119,2.1487932,1158.0,1156.2,0.55091023]
[1761557912316,2.1487932,1158.0,1155.9,0.63988317]
[1761557912517,2.1487932,1158.0,1156.0,0.55091354]
[1761557912717,2.1487932,1157.9,1156.1,0.55091354]
[1761557912921,1.2931272,1157.1,1155.8,0.15031066]
[1761557913121,2.1487932,1157.9,1155.9,0.54947584]
[1761557913122,1.2931272,1157.0,1155.9,0.54947584]
[1761557913319,1.2931272,1157.0,1155.6,0.79036282]
[1761557913521,1.2931272,1157.1,1155.7,0.54932434]
[1761557913722,1.2931272,1157.1,1155.8,0.54932434]
[1761557913921,1.2931272,1157.1,1155.9,0.54932434]
[1761557914119,1.2931272,1157.1,1155.6,0.79036282]
[1761557914419,1.2931272,1157.6,1155.7,0.54926239]
[1761557914622,1.2931272,1157.6,1155.8,0.54926239]
[1761557914819,1.2931272,1157.6,1155.9,0.54926239]
[1761557915024,1.2931272,1157.6,1156.0,0.54926239]
[1761557915219,1.2931272,1157.6,1155.6,0.15047965]
[1761557915420,1.2931272,1157.6,1155.7,0.54915319]
[1761557915622,1.2931272,1157.7,1155.8,0.54915319]
[1761557915925,1.2931272,1157.3,1155.9,0.54915319]
[1761557916125,1.2931272,1157.3,1156.0,0.54915319]
[1761557916425,1.2931272,1157.3,1156.1,0.54915319]
[1761557916625,1.2931272,1157.3,1155.8,0.63988317]
[1761557916825,1.2931272,1157.3,1155.9,0.54888438]
[1761557917026,1.2931272,1157.3,1156.0,0.54888438]
[1761557917325,1.2931272,1157.3,1156.1,0.54888438]
[1761557917521,1.2931272,1157.3,1155.8,0.63988317]
[1761557917723,1.2931272,1157.3,1155.9,0.54883215]
[1761557918021,1.2931272,1157.3,1156.0,0.54883215]
[1761557918222,1.2931272,1157.3,1156.1,0.54883215]
[1761557918425,1.2931272,1157.3,1155.8,0.63988317]
[1761557918621,1.2931272,1157.3,1155.9,0.54877504]
[1761557918922,1.2931272,1157.3,1156.0,0.54877504]
[1761557919223,1.2931272,1157.3,1156.1,0.54877504]
[1761557919423,1.2931272,1157.3,1155.8,0.63988317]
[1761557919626,1.2931272,1157.3,1155.9,0.54873567]
[1761557919823,1.2931272,1157.3,1156.0,0.54873567]
[1761557920028,1.2931272,1157.3,1156.1,0.54873567]
[1761557920228,1.2931272,1157.4,1156.2,0.54873567]
[1761557920426,1.2931272,1157.4,1155.8,0.63988317]
[1761557920625,1.2931272,1157.4,1155.9,0.54859095]
[1761557920825,1.2931272,1157.4,1156.0,0.54859095]
[1761557921126,1.2931272,1157.4,1156.1,0.54859095]
[1761557921328,1.2931272,1157.5,1156.2,0.54859095]
[1761557921629,1.2931272,1157.5,1155.9,0.63988317]
[1761557921926,1.2931272,1157.5,1156.0,0.54853102]
[1761557922128,1.2931272,1157.5,1156.1,0.54853102]
[1761557922428,1.2931272,1157.5,1156.2,0.54853102]
[1761557922726,1.2931272,1157.5,1156.3,0.54853102]
[1761557922924,1.2931272,1157.5,1155.9,0.63988317]
[1761557923125,1.2931272,1157.5,1156.0,0.54848336]
[1761557923324,1.2931272,1157.5,1156.1,0.54848336]
[1761557923525,1.2931272,1157.5,1156.2,0.54848336]
[1761557923724,1.2931272,1157.5,1156.3,0.54848336]
[1761557923925,1.2931272,1157.5,1155.9,0.63988317]
[1761557924230,1.2931272,1157.6,1156.0,1.18836174]
[1761557924429,1.2931272,1157.6,1156.1,0.54847857]
[1761557924726,1.2931272,1157.6,1156.2,0.54847857]
[1761557924929,1.2931272,1157.6,1156.3,0.54847857]
[1761557925225,1.2931272,1157.6,1156.4,0.54847857]
[1761557925430,1.2931272,1157.6,1156.0,0.63988317]
[1761557925629,1.2931272,1157.6,1156.1,0.5483819]
[1761557925830,1.2931272,1157.6,1156.2,0.5483819]
[1761557926026,1.2931272,1157.6,1156.3,0.5483819]
[1761557926226,1.2931272,1157.6,1156.4,0.5483819]
[1761557926529,1.2931272,1157.6,1156.0,0.63988317]
[1761557926725,1.2931272,1157.6,1156.1,0.54839861]
[1761557926926,1.2931272,1157.6,1156.2,0.54839861]
[1761557927224,1.2931272,1157.6,1156.3,0.54839861]
[1761557927423,1.2931272,1157.6,1156.4,0.54839861]
[1761557927628,1.2931272,1157.6,1156.0,0.63988317]
[1761557927928,1.2931272,1157.6,1156.1,0.54841574]
[1761557928126,1.2931272,1157.6,1156.2,0.54841574]
[1761557928329,1.2931272,1157.6,1156.3,0.54841574]
[1761557928530,1.2931272,1157.6,1156.4,0.54841574]
[1761557928727,1.2931272,1157.6,1156.0,0.63988317]
[1761557928932,1.2931272,1157.6,1156.1,0.54842154]
[1761557929132,1.2931272,1157.6,1156.2,0.54842154]
[1761557929333,1.2931272,1157.6,1156.3,0.54842154]
[1761557929531,1.2931272,1157.7,1156.4,0.54842154]
[1761557929729,1.2931272,1157.7,1156.0,0.63988317]
[1761557930033,1.2931272,1158.6,1156.1,0.54843825]
[1761557930231,1.2931272,1159.5,1156.7,0.63988317]
[1761557930532,1.2931272,1159.0,1156.9,0.63988317]
[1761557930732,1.2931272,1159.0,1157.0,0.54843825]
[1761557930928,1.2931272,1159.0,1157.1,0.54843825]
[1761557931135,1.2931272,1159.1,1157.2,0.54843825]
[1761557931431,1.2931272,1159.1,1157.3,0.54843825]
[1761557931634,1.2931272,1159.1,1156.8,0.63988317]
[1761557931836,1.2931272,1159.1,1156.9,0.54592179]
[1761557932033,1.2931272,1159.1,1157.0,0.54592179]
[1761557932332,1.2931272,1159.1,1157.1,0.54592179]
[1761557932535,1.2931272,1159.1,1157.2,0.54592179]
[1761557932732,1.2931272,1159.1,1157.3,0.54592179]
[1761557933032,1.2931272,1159.1,1156.8,0.63988317]
[1761557933237,1.2931272,1159.2,1156.9,0.54510022]
[1761557933535,1.2931272,1159.1,1157.0,0.54510022]
[1761557933731,1.2931272,1159.1,1157.1,0.54510022]
[1761557933932,1.2931272,1159.1,1157.2,0.54510022]
[1761557934136,1.2931272,1159.1,1156.7,0.63988317]
[1761557934337,1.2931272,1159.1,1156.8,0.54468894]
[1761557934533,1.2931272,1159.1,1156.9,0.54468894]
[1761557934736,1.2931272,1159.1,1157.0,0.54468894]
[1761557935032,1.2931272,1159.1,1157.1,0.54468894]
[1761557935236,1.2931272,1159.2,1156.7,0.63988317]
[1761557935432,1.2931272,1159.2,1156.8,0.54437235]
[1761557935633,1.2931272,1159.2,1156.9,0.54437235]
[1761557935834,1.2931272,1159.2,1157.0,0.54437235]
[1761557936034,1.2931272,1159.2,1157.1,0.54437235]
[1761557936235,1.2931272,1159.2,1156.7,0.63988317]
[1761557936438,1.2931272,1159.2,1156.8,0.54410179]
[1761557936638,1.2931272,1159.2,1156.9,0.54410179]
[1761557936838,1.2931272,1159.2,1157.0,0.54410179]
[1761557937039,1.2931272,1159.1,1157.1,0.54410179]
[1761557937234,1.2931272,1159.2,1157.2,0.54410179]
[1761557937440,1.2931272,1159.2,1156.8,0.63988317]
[1761557937741,1.2931272,1159.2,1156.9,0.54372712]
[1761557938039,1.2931272,1159.2,1157.0,0.54372712]
[1761557938240,1.2931272,1159.1,1157.1,0.54372712]
[1761557938437,1.2931272,1159.2,1157.2,0.54372712]
[1761557938640,1.2931272,1159.2,1156.8,0.63988317]
[1761557938641,1.2931272,1159.3,1156.8,0.63988317]
[1761557938841,1.2931272,1159.2,1156.9,0.54339915]
[1761557939137,1.2931272,1159.4,1157.0,0.54339915]
[1761557939341,1.2931272,1159.4,1157.1,0.54339915]
[1761557939541,1.2931272,1159.4,1157.2,0.54339915]
[1761557939738,1.2931272,1159.4,1156.8,0.63988317]
[1761557939941,1.2931272,1159.5,1156.9,1.18303169]
[1761557940138,1.2931272,1159.4,1157.0,0.54314852]
[1761557940342,1.2931272,1159.4,1157.1,0.54314852]
[1761557940539,1.2931272,1159.4,1156.7,0.85826132]
[1761557940838,1.2931272,1159.4,1156.9,0.63675358]
[1761557941040,1.2931272,1159.4,1157.0,0.54305403]
[1761557941239,1.2931272,1159.4,1157.1,0.54305403]
[1761557941438,1.2931272,1159.4,1157.2,0.54305403]
[1761557941640,1.2931272,1159.4,1157.3,0.54305403]
[1761557941841,1.2931272,1159.4,1156.9,0.63675358]
[1761557942040,1.2931272,1159.3,1157.0,0.54278968]
[1761557942343,1.2931272,1159.5,1157.1,0.54278968]
[1761557942543,1.2931272,1159.5,1157.2,0.54278968]
[1761557942744,1.2931272,1159.5,1157.3,0.54278968]
[1761557943040,1.2931272,1159.5,1157.4,0.54278968]
[1761557943343,1.2931272,1159.6,1157.0,0.63675358]
[1761557943539,1.2931272,1159.7,1157.1,1.1786489]
[1761557943741,1.2931272,1159.7,1157.2,0.54189532]
[1761557944042,1.2931272,1159.7,1157.3,0.54189532]
[1761557944244,1.2931272,1159.7,1157.4,0.54189532]
[1761557944439,1.2931272,1159.7,1157.1,0.63675358]
[1761557944642,1.2931272,1159.7,1157.2,0.54163085]
[1761557944842,1.2931272,1159.7,1157.3,0.54163085]
[1761557945045,1.2931272,1159.7,1157.4,0.54163085]
[1761557945340,1.2931272,1159.8,1157.1,0.63675358]
[1761557945541,1.2931272,1159.8,1157.2,0.54137783]
[1761557945744,1.2931272,1159.8,1157.3,0.54137783]
[1761557945943,1.2931272,1159.8,1157.4,0.54137783]
[1761557946143,1.2931272,1159.8,1157.1,0.63675358]
[1761557946342,1.2931272,1159.8,1157.2,0.54131883]
[1761557946644,1.2931272,1159.8,1157.3,0.54131883]
[1761557946844,1.2931272,1159.8,1157.4,0.54131883]
[1761557947044,1.2931272,1159.8,1157.1,0.63675358]
[1761557947245,1.2931272,1159.8,1157.2,0.54106379]
[1761557947445,1.2931272,1159.8,1157.3,0.54106379]
[1761557947641,1.2931272,1159.8,1157.4,0.54106379]
[1761557947945,1.2931272,1159.8,1157.1,0.63675358]
[1761557948144,1.2931272,1159.9,1157.2,0.54089366]
[1761557948345,1.2931272,1159.9,1157.3,0.54089366]
[1761557948648,1.2931272,1159.9,1157.4,0.54089366]
[1761557948840,1.2931272,1159.9,1157.1,0.63675358]
[1761557949044,1.2931272,1159.9,1157.2,0.54066302]
[1761557949246,1.2931272,1159.9,1157.3,0.54066302]
[1761557949540,1.2931272,1159.9,1157.4,0.54066302]
[1761557949743,1.44332239,1160.2,1157.0,0.63675358]
[1761557949943,1.2931272,1159.9,1157.1,0.54052852]
[1761557950143,1.2931272,1159.9,1157.2,0.54052852]
[1761557950346,1.2931272,1159.9,1157.3,0.54052852]
[1761557950547,1.2931272,1160.0,1157.4,0.54052852]
[1761557950847,1.2931272,1160.0,1157.1,0.63675358]
[1761557951146,1.2931272,1160.0,1157.2,0.54027032]
[1761557951348,1.2931272,1160.0,1157.3,0.54027032]
[1761557951642,1.2931272,1160.0,1157.4,0.54027032]
[1761557951847,1.2931272,1160.0,1157.1,0.63675358]
[1761557952046,1.2931272,1160.1,1157.2,0.54008424]
[1761557952247,1.2931272,1160.3,1157.3,0.54008424]
[1761557952546,3.0083104,1161.2,1157.4,0.54008424]
[1761557952547,1.44333276,1160.4,1157.4,0.54008424]
[1761557952748,1.44333276,1160.4,1157.5,0.54008424]
[1761557952947,0.15020556,1160.4,1157.6,0.54008424]
[1761557953242,0.15020556,1160.4,1157.7,0.54008424]
[1761557953445,0.15020556,1160.4,1157.2,0.63675358]
[1761557953647,0.15020556,1160.4,1157.3,0.53935202]
[1761557953942,0.15020556,1160.4,1157.4,0.53935202]
[1761557954245,0.15020556,1160.4,1157.5,0.53935202]
[1761557954442,0.15020556,1160.4,1157.6,0.53935202]
[1761557954744,0.15020556,1160.4,1157.2,0.63675358]
[1761557954948,0.15020556,1160.4,1157.3,0.53883967]
[1761557955144,0.15020556,1160.4,1157.4,0.53883967]
[1761557955347,0.15020556,1160.4,1157.5,0.53883967]
[1761557955645,0.15020556,1160.4,1157.6,0.53883967]
[1761557955841,0.15020556,1160.4,1157.2,0.63675358]
[1761557956044,0.15020556,1160.4,1157.3,0.53881273]
[1761557956246,0.15020556,1160.4,1157.4,0.53881273]
[1761557956447,0.15020556,1160.4,1157.5,0.53881273]
[1761557956645,0.15020556,1160.4,1157.6,0.53881273]
[1761557956849,0.15020556,1160.4,1157.2,0.63675358]
[1761557957050,0.15020556,1160.4,1157.3,0.53861025]
[1761557957250,0.15020556,1160.4,1157.4,0.53861025]
[1761557957446,0.15020556,1160.4,1157.5,0.53861025]
[1761557957649,0.15020556,1160.4,1157.6,0.53861025]
[1761557957846,0.15020556,1160.4,1157.2,0.63675358]
[1761557958051,0.15020556,1160.4,1157.3,0.53850256]
[1761557958350,0.15020556,1160.4,1157.4,0.53850256]
[1761557958551,0.15020556,1160.4,1157.5,0.53850256]
[1761557958752,0.15020556,1160.4,1157.2,0.63675358]
[1761557959054,1.44333276,1160.4,1157.3,0.53825549]
[1761557959251,0.15020556,1160.4,1157.4,0.53825549]
[1761557959448,0.15020556,1160.4,1157.5,0.53825549]
[1761557959756,0.15020556,1160.4,1157.2,0.63675358]
[1761557959947,0.15020556,1160.4,1157.3,0.53811799]
[1761557960248,0.15020556,1160.4,1157.4,0.53811799]
[1761557960447,0.15020556,1160.4,1157.5,0.53811799]
[1761557960652,0.15020556,1160.4,1157.2,0.63675358]
[1761557960852,0.15020556,1160.4,1157.3,0.53802969]
[1761557961050,0.15020556,1160.4,1157.4,0.53802969]
[1761557961253,0.15020556,1160.4,1157.5,0.53802969]
[1761557961450,0.15020556,1160.4,1157.2,0.63675358]
[1761557961755,0.15020556,1160.4,1157.3,0.53792763]
[1761557961955,0.15020556,1160.4,1157.4,0.53792763]
[1761557962155,0.15020556,1160.4,1157.2,0.63675358]
[1761557962156,0.15020556,1160.4,1157.5,0.53792763]
[1761557962452,0.15020556,1160.4,1157.1,0.63675358]